fUSD/lending_fUSD_20250926
["ID","MTS","AMOUNT","RATE_DAILY","PERIOD"]
[387784378,1758862242901,-952.4835028,0.0001966,2]
[387784379,1758862242957,-2831.93764329,0.0001966,2]
[387784380,1758862242966,-5000.0,0.00019934,2]
[387784381,1758862242975,-13774.28627541,0.0002,2]
[387784382,1758862243060,-796.37125778,0.0002,2]
[387784383,1758862245490,-7344.46966559,0.0002,2]
[387784384,1758862245600,-1113.8,0.0002,2]
[387784385,1758862245854,-174.50471538,0.0002,2]
[387784386,1758862245876,-1275.43918907,0.0002,2]
[387784387,1758862245958,-1026.49999994,0.0002,2]
[387784388,1758862245998,-29047.29777669,0.0002,2]
[387784389,1758862246009,-64562.9911996,0.0002,2]
[387784390,1758862246020,-171801.1745762,0.0002,2]
[387784391,1758862315285,213.33,0.00015816,2]
[387784392,1758862355207,-200.32623168,0.00019199,2]
[387784393,1758862631305,-200.32623168,0.000187,5]
[387784394,1758862635844,-220.25277173,0.000187,5]
[387784395,1758862638774,-194.76282735,0.000187,5]
[387784396,1758862641948,-381.28369723,0.000187,5]
[387784397,1758862645904,-250.79329692,0.000187,5]
[387784398,1758862649786,-300.0,0.000187,5]
[387784399,1758862656372,-260.34544797,0.000187,5]
[387784400,1758862659128,-168.0,0.000187,5]
[387784401,1758862663523,-283.10642535,0.000187,5]
[387784402,1758862666742,-288.54812668,0.000187,5]
[387784403,1758862669118,-180.27020381,0.000187,5]
[387784404,1758862673251,-211.29993295,0.000187,5]
[387784405,1758862677622,-306.5346826,0.000187,5]
[387784406,1758862681175,-163.20195054,0.000187,5]
[387784407,1758862686683,-393.51753067,0.000187,5]
[387784408,1758862689530,-181.65647169,0.000187,5]
[387784409,1758862692581,1530.0,0.000185,5]
[387784410,1758862695538,-178.0,0.000187,2]
[387784411,1758862712293,250.0,0.00015,2]
[387784412,1758862713368,300.0,0.00017,2]
[387784413,1758862810972,175.4414699,0.00017,10]
[387784414,1758862810997,56.5585301,0.00017,10]
[387784415,1758863019304,-171.0,0.00018615,3]
[387784416,1758863021782,-203.33350099,0.00018615,3]
[387784417,1758863024536,-159.798,0.00018615,3]
[387784418,1758863026835,-131.86849901,0.00018615,3]
[387784419,1758863107118,150.0,0.00018,2]
[387784420,1758863107246,150.0,0.00018,2]
[387784421,1758863107293,150.0,0.00018,2]
[387784422,1758863114981,150.0,0.00018,2]
[387784423,1758863127834,150.0,0.00018,2]
[387784424,1758863129751,150.0,0.00018,2]
[387784425,1758863144117,150.0,0.0001852,2]
[387784426,1758863144641,213.0,0.0001852,2]
[387784427,1758863145463,302.46,0.0001852,2]
[387784428,1758863146225,337.83103826,0.0001852,2]
[387784429,1758863223338,-250.0,0.00018625,2]
[387784430,1758863223362,-38.84553743,0.00018683,2]
[387784431,1758863228615,910.632952,7.945e-05,2]
[387784432,1758863232310,-160.16363678,0.00018683,2]
[387784433,1758863234472,-164.1,0.00018683,2]
[387784434,1758863235994,-73.11434465,0.00018683,2]
[387784435,1758863350171,172.3,0.00014911,2]
[387784436,1758863423789,-190.09478855,0.00018621,2]
[387784437,1758863427024,-176.52521145,0.00018621,2]
[387784445,1758863431711,-277.86,0.00018741,2]
[387784446,1758863431720,-138.30595857,0.00018825,2]
[387784447,1758863431766,-161.69404143,0.00018825,2]
[387784448,1758863431775,-1200.0,0.0001891,2]
[387784449,1758863431785,-330.09969911,0.0001891,2]
[387784450,1758863431796,-500.0,0.0001891,2]
[387784451,1758863431805,-500.0,0.0001891,2]
[387784452,1758863431816,-392.37322663,0.0001891,2]
[387784453,1758863431826,-78.16593498,0.00018912,2]
[387784454,1758863431848,-101.40252143,0.00018912,2]
[387784455,1758863431858,-156.0,0.00018913,2]
[387784456,1758863431867,-4143.72,0.00018914,2]
[387784457,1758863431878,-917.06,0.00018963,2]
[387784458,1758863431887,-1493.05,0.00018978,2]
[387784459,1758863431897,-335.72,0.00018978,2]
[387784460,1758863431906,-151.97739781,0.00018999,2]
[387784461,1758863431916,-8260.1307224,0.00018999,2]
[387784462,1758863431929,-467.35,0.00019,7]
[387784463,1758863431939,-150.0,0.00019022,7]
[387784464,1758863431949,-791.36,0.00019103,2]
[387784465,1758863431958,-933.87,0.0001911,2]
[387784466,1758863431968,-150.0,0.00019123,2]
[387784467,1758863431978,-200.0,0.00019123,2]
[387784468,1758863431988,-1986.24,0.00019136,2]
[387784469,1758863431997,-160.0,0.00019175,2]
[387784470,1758863432007,-579.68566302,0.000192,2]
[387784471,1758863432019,-420.31433698,0.000192,2]
[387784472,1758863432028,-506.0,0.0001937,2]
[387784473,1758863432038,-250.0,0.00019422,2]
[387784474,1758863432048,-168.0,0.00019429,2]
[387784475,1758863432058,-168.0,0.00019556,2]
[387784476,1758863432068,-352.54875,0.000198,2]
[387784477,1758863432081,-181.96335592,0.00019842,2]
[387784478,1758863432097,-181.96335592,0.00019861,2]
[387784479,1758863432107,-180.46801349,0.0001987,2]
[387784481,1758863432116,-254.98092677,0.00019875,2]
[387784483,1758863432126,-150.0,0.00019876,2]
[387784485,1758863432135,-181.96335592,0.00019879,2]
[387784487,1758863432144,-181.96335592,0.00019885,2]
[387784488,1758863432154,-322.6107,0.00019888,2]
[387784489,1758863432164,-200.0,0.00019888,2]
[387784490,1758863432173,-500.0,0.00019888,2]
[387784491,1758863432183,-500.0,0.00019888,2]
[387784492,1758863432192,-500.0,0.00019888,2]
[387784493,1758863432202,-500.0,0.00019888,2]
[387784494,1758863432212,-500.0,0.00019888,2]
[387784495,1758863432221,-500.0,0.00019888,2]
[387784497,1758863432230,-500.0,0.00019888,2]
[387784498,1758863432239,-500.0,0.00019888,2]
[387784499,1758863432248,-500.0,0.00019888,2]
[387784500,1758863432257,-500.0,0.00019888,2]
[387784501,1758863432267,-1000.0,0.00019888,2]
[387784502,1758863432276,-1000.0,0.00019888,2]
[387784503,1758863432285,-1125.330671,0.00019888,2]
[387784504,1758863432295,-526.86978479,0.00019888,2]
[387784505,1758863432304,-500.0,0.00019888,2]
[387784506,1758863432313,-500.0,0.00019888,2]
[387784507,1758863432323,-542.09248006,0.00019888,2]
[387784508,1758863432333,-200.0,0.00019888,2]
[387784509,1758863432344,-200.0,0.00019888,2]
[387784510,1758863432354,-200.0,0.00019888,2]
[387784511,1758863432363,-200.0,0.00019888,2]
[387784512,1758863432373,-200.0,0.00019888,2]
[387784513,1758863432386,-200.0,0.00019888,2]
[387784514,1758863432396,-200.0,0.00019888,2]
[387784515,1758863432406,-200.0,0.00019888,2]
[387784516,1758863432415,-200.0,0.00019888,2]
[387784517,1758863432424,-500.0,0.00019888,2]
[387784518,1758863432434,-200.0,0.00019888,2]
[387784519,1758863432444,-163.0,0.00019888,2]
[387784520,1758863432453,-500.0,0.00019888,2]
[387784521,1758863432463,-181.96335592,0.00019895,2]
[387784522,1758863432473,-556.71948121,0.00019897,2]
[387784523,1758863432482,-254.98092677,0.00019897,2]
[387784524,1758863432492,-254.98092677,0.00019897,2]
[387784525,1758863432502,-1422.9188,0.000199,2]
[387784526,1758863432512,-1000.0,0.000199,2]
[387784527,1758863432522,-981.38088044,0.000199,2]
[387784528,1758863432532,-5000.0,0.000199,2]
[387784529,1758863432542,-169.73422579,0.000199,2]
[387784530,1758863432552,-375.27088832,0.000199,2]
[387784531,1758863432561,-176.10190948,0.000199,2]
[387784532,1758863432571,-1950.2705557,0.000199,2]
[387784533,1758863432581,-1307.88863486,0.000199,2]
[387784534,1758863432590,-233.42191764,0.000199,2]
[387784535,1758863432600,-254.98092677,0.00019904,2]
[387784536,1758863432609,-181.96335592,0.00019905,2]
[387784537,1758863432619,-180.46801349,0.00019919,2]
[387784538,1758863432628,-180.46801349,0.00019923,2]
[387784539,1758863432638,-335.72,0.00019927,2]
[387784540,1758863432648,-180.46801349,0.00019927,2]
[387784541,1758863432657,-165.64408697,0.00019937,2]
[387784542,1758863432667,-2971.533,0.00019937,2]
[387784543,1758863432677,-180.46801349,0.00019939,2]
[387784544,1758863432686,-180.46801349,0.0001994,2]
[387784545,1758863432696,-254.98092677,0.0001994,2]
[387784546,1758863432705,-180.46801349,0.0001994,2]
[387784547,1758863432714,-254.98092677,0.00019948,2]
[387784548,1758863432724,-254.98092677,0.00019962,2]
[387784549,1758863432734,-580.70992824,0.00019973,2]
[387784550,1758863432744,-508.16864669,0.00019973,2]
[387784551,1758863432758,-510.72773165,0.00019973,2]
[387784552,1758863432768,-500.0,0.00019973,2]
[387784553,1758863432777,-513.38352566,0.00019973,2]
[387784554,1758863432787,-502.46192837,0.00019973,2]
[387784555,1758863432797,-181.96335592,0.0001998,2]
[387784556,1758863432807,-173.77,0.0001999,2]
[387784557,1758863432817,-173.77,0.0001999,2]
[387784558,1758863432827,-173.77,0.0001999,2]
[387784559,1758863432838,-173.77,0.0001999,2]
[387784560,1758863432851,-151.0,0.00019997,2]
[387784561,1758863432860,-151.0,0.00019997,2]
[387784562,1758863433060,-150.0,0.00019999,2]
[387784563,1758863433102,-500.0,0.00019999,2]
[387784564,1758863433113,-3271.0,0.00019999,2]
[387784565,1758863433122,-150.0,0.00019999,2]
[387784566,1758863433132,-150.0,0.00019999,2]
[387784567,1758863433142,-150.0,0.00019999,2]
[387784568,1758863433152,-205.04286221,0.00019999,2]
[387784569,1758863433161,-150.0,0.00019999,2]
[387784570,1758863433171,-150.0,0.00019999,2]
[387784571,1758863433180,-150.0,0.00019999,2]
[387784572,1758863433190,-151.07253869,0.00019999,2]
[387784573,1758863433199,-500.0,0.00019999,2]
[387784574,1758863433209,-295.27466194,0.00019999,2]
[387784575,1758863433222,-153.13753536,0.00019999,2]
[387784576,1758863433232,-500.0,0.00019999,2]
[387784577,1758863433242,-1000.0,0.00019999,2]
[387784578,1758863433251,-2147.0,0.0002,2]
[387784579,1758863433261,-10193.79404038,0.0002,2]
[387784580,1758863433270,-27431.32714255,0.0002,2]
[387784581,1758863433283,-294.9922424,0.0002,2]
[387784582,1758863433294,-1082.41286465,0.0002,2]
[387784583,1758863433305,-5238.63672,0.0002,2]
[387784584,1758863433321,-1004.78810055,0.0002,2]
[387784585,1758863433355,-47768.33952102,0.0002,2]
[387784586,1758863433375,-379.37812013,0.0002,2]
[387784587,1758863434479,214.05,9.927e-05,2]
[387784588,1758863434674,214.05,0.00010449,2]
[387784589,1758863435076,214.05,0.00010972,2]
[387784590,1758863435285,214.05,0.00011494,2]
[387784591,1758863435496,214.05,0.00012017,2]
[387784592,1758863435701,214.05,0.00012539,2]
[387784593,1758863436108,214.05,0.00013062,2]
[387784594,1758863436209,214.05,0.00013584,2]
[387784595,1758863436523,214.05,0.00014107,2]
[387784596,1758863436982,214.05,0.00014629,2]
[387784597,1758863437127,214.05,0.00015152,2]
[387784598,1758863437347,214.05,0.00015674,2]
[387784602,1758863437553,214.05,0.00016197,2]
[387784604,1758863437752,214.05,0.00016719,2]
[387784605,1758863437765,-316.23561972,0.00019936,2]
[387784606,1758863437775,-1406.23730602,0.0002,2]
[387784607,1758863437958,214.05,0.00017242,2]
[387784620,1758863438362,214.05,0.00017764,2]
[387784621,1758863438593,214.05,0.00018286,2]
[387784623,1758863439606,-214.05,0.00018809,2]
[387784624,1758863439616,-214.05,0.00019331,2]
[387784625,1758863439626,-214.05,0.00019854,2]
[387784626,1758863439636,-2219.14380096,0.0002,2]
[387784627,1758863439647,-4307.19990002,0.0002,2]
[387784628,1758863439658,-1046.53368267,0.0002,2]
[387784629,1758863440030,-164.61263895,0.0002,2]
[387784632,1758863440062,-571915.21122522,0.0002,2]
[387784633,1758863440071,-172017.53677763,0.0002,2]
[387784637,1758863442981,-1983.78384617,0.0002,2]
[387784649,1758863445654,-2021.47440695,0.0002,2]
[387784650,1758863445731,-790.25931196,0.0002,2]
[387784651,1758863446026,-410.2200002,0.0002,2]
[387784653,1758863613148,4000.0,0.00030137,120]
[387784654,1758863621910,4000.0,0.00030137,120]
[387784655,1758863630910,4000.0,0.00030137,120]
[387784656,1758864245411,10000.0,0.00018571,2]
[387784657,1758864307303,150.0,0.00018,2]
[387784658,1758864307692,150.0,0.00018,2]
[387784659,1758864307761,150.0,0.00018,2]
[387784660,1758864313336,150.0,0.00018,2]
[387784661,1758864314677,150.0,0.00018,2]
[387784662,1758864314733,150.0,0.00018,2]
[387784663,1758864330716,150.0,0.00018,2]
[387784664,1758864363151,12201.87554856,8e-05,2]
[387784665,1758864367474,9298.3156112,0.00011,2]
[387784666,1758864390319,2018.81738946,0.00015,2]
[387784667,1758864397602,151.73,9.412e-05,2]
[387784668,1758864430011,1423.49914274,0.00015,2]
[387784669,1758864471647,2192.71934216,0.00013,15]
[387784670,1758864473407,29032.91129804,0.00018,2]
[387784671,1758864473438,62562.93574768,0.00018,2]
[387784674,1758864515668,250.0,0.00015,2]
[387784675,1758864516751,300.0,0.00017,2]
[387784693,1758864618090,-283.70639134,0.00018727,2]
[387784694,1758864621795,-171.74865833,0.00018727,2]
[387784695,1758864624921,-3.07495033,0.00018727,2]
[387784707,1758864631865,-497.75,0.00018756,2]
[387784708,1758864631965,-381.18195705,0.00018756,2]
[387784709,1758864631976,-121.06804295,0.00018756,2]
[387784710,1758864631987,-1261.32219161,0.00018779,2]
[387784711,1758864632012,-738.67780839,0.00018779,2]
[387784712,1758864632022,-212.72022246,0.00018803,2]
[387784713,1758864632032,-719.69,0.00018824,2]
[387784714,1758864632041,-200.0,0.00018847,2]
[387784715,1758864632051,-666.0,0.00018896,3]
[387784716,1758864632060,-160.0,0.00018898,2]
[387784717,1758864632069,-1093.25355993,0.00018901,2]
[387784718,1758864632080,-106.74644007,0.00018901,2]
[387784719,1758864632090,-300.0,0.00018901,2]
[387784720,1758864632099,-300.0,0.00018901,2]
[387784721,1758864632109,-1200.0,0.00018902,2]
[387784722,1758864632118,-500.0,0.00018902,2]
[387784723,1758864632129,-376.62177547,0.00018902,2]
[387784724,1758864632138,-500.0,0.00018902,2]
[387784725,1758864632148,-483.17466323,0.00018902,2]
[387784726,1758864632157,-500.0,0.00018902,2]
[387784727,1758864632166,-500.0,0.00018902,2]
[387784728,1758864632175,-200.0,0.00018937,2]
[387784729,1758864632187,-201.43,0.00018961,2]
[387784730,1758864632198,-711.85,0.00018987,2]
[387784731,1758864632207,-1496.28593112,0.00018999,2]
[387784732,1758864632219,-1619.80947366,0.00018999,2]
[387784733,1758864632240,-954.02089114,0.00018999,2]
[387784734,1758864632251,-3895.29423676,0.00018999,2]
[387784735,1758864632261,-501.10299143,0.00019,7]
[387784736,1758864632271,-360.0,0.00019122,2]
[387784737,1758864632281,-150.0,0.00019181,7]
[387784738,1758864632290,-874.44898038,0.000197,2]
[387784739,1758864632299,-212.72022246,0.000198,2]
[387784740,1758864632309,-381.92782,0.000198,2]
[387784741,1758864632318,-264.0,0.00019812,2]
[387784744,1758864632327,-200.0,0.00019839,2]
[387784747,1758864632337,-200.0,0.0001984,2]
[387784750,1758864632346,-179.95207213,0.00019865,2]
[387784752,1758864632356,-179.95207213,0.00019867,2]
[387784754,1758864632366,-151.0,0.00019888,2]
[387784756,1758864632375,-151.0,0.00019888,2]
[387784758,1758864632384,-151.0,0.00019888,2]
[387784760,1758864632394,-322.6107,0.00019888,2]
[387784762,1758864632403,-151.0,0.00019888,2]
[387784764,1758864632413,-154.57478947,0.00019888,2]
[387784766,1758864632422,-151.0,0.00019888,2]
[387784790,1758864632589,-151.0,0.00019888,2]
[387784792,1758864632598,-151.0,0.00019888,2]
[387784794,1758864632608,-151.0,0.00019888,2]
[387784796,1758864632617,-225.24942231,0.00019888,2]
[387784798,1758864632626,-151.0,0.00019888,2]
[387784800,1758864632635,-151.0,0.00019888,2]
[387784802,1758864632644,-151.0,0.00019888,2]
[387784804,1758864632654,-151.0,0.00019888,2]
[387784806,1758864632663,-500.0,0.00019888,2]
[387784808,1758864632673,-500.0,0.00019888,2]
[387784810,1758864632683,-500.0,0.00019888,2]
[387784812,1758864632692,-500.0,0.00019888,2]
[387784814,1758864632702,-500.0,0.00019888,2]
[387784816,1758864632711,-500.0,0.00019888,2]
[387784818,1758864632720,-500.0,0.00019888,2]
[387784820,1758864632729,-500.0,0.00019888,2]
[387784822,1758864632739,-500.0,0.00019888,2]
[387784824,1758864632748,-500.0,0.00019888,2]
[387784826,1758864632757,-189.26587352,0.00019888,2]
[387784828,1758864632766,-962.03990458,0.00019895,2]
[387784830,1758864632775,-962.03990457,0.00019895,2]
[387784832,1758864632786,-1947.04982156,0.00019895,2]
[387784834,1758864632795,-629.97717143,0.00019895,2]
[387784836,1758864632805,-858.70827035,0.00019895,2]
[387784838,1758864632814,-268.75855861,0.00019896,2]
[387784841,1758864632827,-713.90783571,0.00019896,2]
[387784843,1758864632839,-742.81520405,0.00019896,2]
[387784848,1758864632871,-221.56822313,0.00019896,2]
[387784849,1758864632880,-492.67793485,0.00019896,2]
[387784852,1758864632891,-791.42381145,0.00019896,2]
[387784854,1758864632902,-662.9480752,0.00019896,2]
[387784856,1758864632912,-1947.0498215,0.00019897,2]
[387784858,1758864632921,-1947.0498215,0.00019897,2]
[387784860,1758864632931,-1947.0498215,0.00019898,2]
[387784862,1758864632940,-1947.0498215,0.00019898,2]
[387784864,1758864632950,-1947.0498215,0.00019899,2]
[387784866,1758864632959,-279.82383604,0.00019899,2]
[387784868,1758864632969,-183.95620417,0.00019899,2]
[387784870,1758864632978,-3069.17752356,0.00019899,2]
[387784872,1758864632988,-1947.0498215,0.00019899,2]
[387784874,1758864632998,-9673.8019,0.000199,2]
[387784876,1758864633007,-8544.1413,0.000199,2]
[387784878,1758864633016,-1000.0,0.000199,2]
[387784880,1758864633026,-1000.0,0.000199,2]
[387784882,1758864633035,-2500.0,0.000199,2]
[387784884,1758864633045,-15867.31,0.000199,2]
[387784886,1758864633054,-160.86935983,0.000199,2]
[387784887,1758864633063,-519.52436443,0.000199,2]
[387784888,1758864633073,-250.18059222,0.000199,2]
[387784889,1758864633082,-1947.0498215,0.000199,2]
[387784890,1758864633092,-201.43,0.00019909,2]
[387784891,1758864633101,-556.98162253,0.00019939,2]
[387784892,1758864633113,-2563.12837747,0.00019939,2]
[387784893,1758864633123,-165.644,0.0001994,2]
[387784894,1758864633132,-179.95207213,0.00019941,2]
[387784895,1758864633142,-165.6115044,0.00019967,2]
[387784896,1758864633154,-14.34056773,0.00019967,2]
[387784897,1758864633164,-547.87843257,0.0001997,2]
[387784898,1758864633184,-454.12156743,0.0001997,2]
[387784900,1758864633199,-500.0,0.00019973,2]
[387784902,1758864633213,-179.95207213,0.00019978,2]
[387784904,1758864633223,-179.95207213,0.00019979,2]
[387784906,1758864633234,-1812.75275602,0.00019988,2]
[387784908,1758864633246,-3187.24724398,0.00019988,2]
[387784910,1758864633255,-247.28115479,0.00019992,2]
[387784912,1758864633264,-1000.0,0.00019994,2]
[387784914,1758864633274,-11.75160113,0.00019995,2]
[387784916,1758864633286,-4398.0,0.00019995,2]
[387784918,1758864633297,-687.14541906,0.00019995,2]
[387784920,1758864633307,-1112.85458094,0.00019995,2]
[387784923,1758864633318,-400.14541906,0.00019995,2]
[387784924,1758864633327,-899.85458094,0.00019995,2]
[387784927,1758864633339,-4150.05845237,0.00019995,2]
[387784930,1758864633364,-1487.25625001,0.00019995,2]
[387785057,1758864638088,-221.3649338,0.00019898,2]
[387785058,1758864638098,-587045.3229739,0.00019995,2]
[387785059,1758864638120,-1153.48880663,0.00019995,2]
[387785060,1758864638132,-1722.6,0.00019995,2]
[387785088,1758864639802,-150.0,0.000191,2]
[387785089,1758864639812,-1469.44372607,0.000199,2]
[387785098,1758864643056,-155.78173703,0.000199,2]
[387785099,1758864643066,-637.65826296,0.00019995,2]
[387785100,1758864643196,-95.18501115,0.00019995,2]
[387785101,1758864643341,-1992.7,0.00019995,2]
[387785107,1758864643563,-18902.88790722,0.00019995,2]
[387785109,1758864643573,-816972.14591587,0.00019995,2]
[387785110,1758864643588,-270.9602,0.00019995,2]
[387785126,1758864645905,-4184.72848826,0.00019995,2]
[387785127,1758864646071,-13362.26667955,0.00019995,2]
[387785128,1758864646083,-9703.72456036,0.00019995,2]
[387785129,1758864646095,-28816.712047,0.00019995,2]
[387785130,1758864713812,-150.0,0.00019207,7]
[387785131,1758865099859,-370.81816165,0.000187,2]
[387785132,1758865129346,708.25169093,0.0001857,2]
[387785133,1758865167049,150.0,0.000181,2]
[387785134,1758865323448,196.53,9.473e-05,2]
[387785135,1758865513135,150.0,0.00018,2]
[387785136,1758865513245,150.0,0.00018,2]
[387785137,1758865513286,150.0,0.00018,2]
[387785138,1758865517040,150.0,0.00018,2]
[387785139,1758865520405,150.0,0.00018,2]
[387785140,1758865520510,150.0,0.00018,2]
[387785141,1758865520572,150.0,0.00018,2]
[387785142,1758865527111,151.23665028,0.00018,2]
[387785143,1758865527467,285.30304941,0.00018,2]
[387785144,1758865529552,181.22222206,0.00018,2]
[387785145,1758865530604,150.83076815,0.00018,2]
[387785146,1758865533058,150.0,0.00018,2]
[387785147,1758865533098,150.0,0.00018,2]
[387785148,1758865533702,151.88550718,0.00018,2]
[387785149,1758865536702,150.0,0.00018,2]
[387785150,1758865536748,150.0,0.00018,2]
[387785151,1758865664065,203.0,0.00029987,120]
[387785152,1758865694480,150.0,0.000171,2]
[387785153,1758865694858,150.0,0.0001828,2]
[387785156,1758865832056,-229.26,0.00018931,2]
[387785157,1758865832066,-874.95156385,0.00018932,2]
[387785158,1758865832168,-1125.04843615,0.00018932,2]
[387785159,1758865832178,-150.0,0.00018933,7]
[387785160,1758865832187,-196.53,0.00018947,2]
[387785161,1758865832197,-151.07,0.00018994,2]
[387785162,1758865832206,-150.0,0.0001947,2]
[387785163,1758865832215,-162.32,0.0001952,2]
[387785164,1758865832226,-512.0,0.0001979,2]
[387785165,1758865832235,-200.0,0.0001984,2]
[387785166,1758865832245,-74.27865845,0.00019886,2]
[387785167,1758865832268,-1125.72134155,0.00019886,2]
[387785168,1758865832277,-300.0,0.00019887,2]
[387785169,1758865832286,-237.0,0.00019887,2]
[387785170,1758865832295,-300.0,0.00019887,2]
[387785171,1758865832304,-300.0,0.00019887,2]
[387785172,1758865832313,-322.6107,0.00019888,2]
[387785173,1758865832322,-151.0,0.00019888,2]
[387785174,1758865832331,-500.0,0.00019888,2]
[387785175,1758865832341,-151.0,0.00019888,2]
[387785176,1758865832350,-500.0,0.00019888,2]
[387785177,1758865832359,-500.0,0.00019888,2]
[387785178,1758865832368,-151.0,0.00019888,2]
[387785179,1758865832377,-151.0,0.00019888,2]
[387785180,1758865832386,-500.0,0.00019888,2]
[387785181,1758865832395,-500.0,0.00019888,2]
[387785182,1758865832405,-151.0,0.00019888,2]
[387785183,1758865832414,-151.0,0.00019888,2]
[387785184,1758865832423,-151.0,0.00019888,2]
[387785185,1758865832433,-151.0,0.00019888,2]
[387785186,1758865832442,-151.0,0.00019888,2]
[387785187,1758865832451,-151.0,0.00019888,2]
[387785188,1758865832460,-270.0112705,0.00019888,2]
[387785189,1758865832470,-151.0,0.00019888,2]
[387785190,1758865832481,-151.0,0.00019888,2]
[387785191,1758865832490,-151.0,0.00019888,2]
[387785192,1758865832499,-151.0,0.00019888,2]
[387785193,1758865832508,-164.11,0.00019888,2]
[387785194,1758865832517,-2990.3099,0.00019895,2]
[387785195,1758865832526,-1000.0,0.00019895,2]
[387785196,1758865832535,-751.3697366,0.00019895,2]
[387785197,1758865832545,-346.97095275,0.00019895,2]
[387785198,1758865832554,-183.95620417,0.00019895,2]
[387785199,1758865832564,-1028.1074,0.00019895,2]
[387785201,1758865832573,-346.97095269,0.00019896,2]
[387785202,1758865832583,-346.97095269,0.00019896,2]
[387785204,1758865832592,-346.97095269,0.00019897,2]
[387785205,1758865832601,-346.97095269,0.00019897,2]
[387785206,1758865832611,-346.97095269,0.00019898,2]
[387785207,1758865832620,-346.97095269,0.00019898,2]
[387785208,1758865832629,-346.97095269,0.00019899,2]
[387785209,1758865832640,-346.97095269,0.00019899,2]
[387785210,1758865832649,-225.88177728,0.000199,2]
[387785211,1758865832659,-159.82841824,0.000199,2]
[387785212,1758865832668,-473.08,0.000199,2]
[387785213,1758865832678,-473.08,0.000199,2]
[387785214,1758865832687,-473.08,0.000199,2]
[387785215,1758865832696,-473.08,0.000199,2]
[387785216,1758865832706,-128.81869672,0.000199,2]
[387785217,1758865832718,-57.73052732,0.000199,2]
[387785218,1758865832728,-166.78706148,0.000199,2]
[387785219,1758865832738,-346.97095269,0.000199,2]
[387785220,1758865832747,-1354.35455255,0.000199,2]
[387785221,1758865832756,-2496.088,0.00019927,2]
[387785222,1758865832766,-500.0,0.00019973,2]
[387785223,1758865832775,-13362.02109236,0.00019975,2]
[387785224,1758865832791,-1402.00000001,0.00019975,2]
[387785225,1758865832818,-62.51732858,0.00019975,2]
[387785226,1758865832827,-154.95545366,0.00019992,2]
[387785227,1758865832837,-191.9793474,0.00019993,2]
[387785228,1758865832846,-1674.53707034,0.00019993,2]
[387785273,1758865840023,-4821.65450137,0.00019888,2]
[387785279,1758865840070,-178.34549863,0.00019888,2]
[387785281,1758865840080,-2500.0,0.00019895,2]
[387785283,1758865840089,-13992.92958545,0.00019993,2]
[387785320,1758865843198,-38.91351439,0.00019993,2]
[387785321,1758865843228,-302.17412442,0.00019993,2]
[387785322,1758865843241,-502.29884863,0.00019993,2]
[387785328,1758865844035,-2002.17070982,0.00019895,2]
[387785329,1758865844045,-40887.18058727,0.00019993,2]
[387785330,1758865844054,-878.64870291,0.00019994,2]
[387785331,1758865846344,-451.3138606,0.00019896,2]
[387785332,1758865896418,-151.07,0.00018929,2]
[387785333,1758866005555,403.0,0.00030137,120]
[387785334,1758866040777,400.01,0.00030137,120]
[387785335,1758866063873,400.1,0.00030137,120]